Cogmind - Beta 15 @@@ ROGUE MODE // 2025.08.12 @ 01:58:29 Player: Skysub Result: Core destroyed Performance ------------- Evolutions (7) 3500 Regions Visited (19) 3800 Robots Destroyed (256) 1280 Value Destroyed (13687) 13687 Prototype IDs (113) 2260 Alien Tech Used (7) 1400 Bonus (12933) 12933 TOTAL SCORE: 38860 Bonus ------- Triggered High Security 500 High Alert Combat Kills 3830 Follower Combat Kills 2370 Network Hubs Disabled 400 Registered with UFD 300 Met Optimus in HQ 500 Built Enhanced Grunts 300 A7 Reached Mainframe 300 Met R17 at Cetus 500 Found Hidden Lab 3000 Met R17 at Research 2000 Friendly Fire -1067 Cogmind --------- Core Integrity 0/1300 Matter 200/300 Energy 100/100 System Corruption 77% Temperature Warm (118) Movement Core (500) Ox9 Location -3/Protoforge Parts ------- > --- POWER (2) -------- (None) > --- PROPULSION (7) --- Biometal Leg > --- UTILITY (9) ------ Experimental Coolant Injector (fused) Concept Antigrav Storage Unit Experimental Optical Array Experimental Signal Interpreter Advanced Targeting Computer Concept Melee Reflex Suite Experimental Core Analyzer Concept Network Penetrator > --- WEAPON (4) ------- (None) > --- INVENTORY (25) --- Micro Antimatter Reactor Advanced Heat Sink Experimental Heat Sink Large Storage Unit Concept Chromion Battery (800) Concept NT7 Matterbank (78) Improved Transmission Jammer Heavy Armor Plating Medium Regenerative Plating Concept RG22 Armor Concept RG22 Armor Concept Energy Mantle Concept Matter Streamer Crosscalibrator Transdimensional Reconstructor Transdimensional Reconstructor Subatomic Replicator Terrabomb Concept Navigation Harness Concept Lightning Penetrator Quantum Rifle Concept Arcsight Missile Launcher Peak State ------------ > --- POWER ------------ Micro Antimatter Reactor Micro Antimatter Reactor > --- PROPULSION ------- Enhanced Armored Medium Treads Experimental Heavy Siege Treads Experimental Heavy Siege Treads Experimental Heavy Siege Treads > --- UTILITY ---------- Advanced Power Amplifier Large Storage Unit Experimental Optical Array Long-range Sensor Array Experimental Signal Interpreter Improved Transmission Jammer Experimental Cloaking Device Improved Hacking Suite Concept Network Penetrator > --- WEAPON ----------- Concept Variable Chargecaster Concept Variable Chargecaster Concept Plasma Driver Concept Deflector Sword > --- INVENTORY -------- Enhanced Armored Medium Treads Improved Coolant Injector Medium Regenerative Plating Experimental Focal Shield Advanced Force Field Crosscalibrator Transdimensional Reconstructor High-powered Transdimensional Reconstructor Subatomic Replicator Terrabomb Concept Lightning Penetrator Concept Variable Chargecaster Concept Arcsight Missile Launcher [Rating: 233] Favorites ----------- Power Antimatter Reactor Engine Ion Engine Power Core Backup Power VII Reactor Antimatter Reactor Propulsion Light Treads Treads Light Treads Leg Biometal Leg Wheel Wheel Hover Unit Improved Antigrav System Flight Unit Q-thruster Utility High-capacity Storage Unit Device Long-range Sensor Array Storage High-capacity Storage Unit Processor Experimental Optical Array Hackware Improved Hacking Suite Protection Hardened Heavy Armor Plating Weapon Concept Variable Chargecaster Energy Gun Concept Variable Chargecaster Energy Cannon Cooled Particle Cannon Ballistic Gun Assault Rifle Ballistic Cannon Hardcell Cannon Launcher Grenade Launcher Special Weapon Improved Plasma Cutter Impact Weapon Gravity Flail Slashing Weapon Ripper Piercing Weapon Plasma Lance Build | -11 -10 -10 -10 -9 -9 -6 -6 -6 -6 -6 -6 -6 -5 -4 -4 -4 -3 -3 -3 ------- Run | Yrd Mat Min Sub Rec Scr Fac Was Fac Ext Cet Arc Hub Fac Fac Arm Lab Res Qua Frg Slots Evolved 14 | . . . . . . 8 . . . . . . 2 2 . . 2 . . Power 1 | . . . . . . 1 . . . . . . . . . . . . . Propulsion 5 | . . . . . . 2 . . . . . . . 1 . . 2 . . Utility 6 | . . . . . . 4 . . . . . . 1 1 . . . . . Weapon 2 | . . . . . . 1 . . . . . . 1 . . . . . . Parts Attached 233 | 7 7 2 4 . 8 16 10 8 4 15 2 . 30 15 10 4 27 13 51 Power 33 | 1 1 . 1 . 2 2 2 . . 4 . . 4 3 1 . 3 2 7 Engine 13 | 1 1 . 1 . 2 1 . . . 1 . . 2 3 . . . . 1 Core 2 | . . . . . . 1 . . . . . . 1 . . . . . . Reactor 18 | . . . . . . . 2 . . 3 . . 1 . 1 . 3 2 6 Propulsion 56 | 2 1 1 1 . 2 3 3 . 2 2 . . 7 3 5 . 12 . 12 Treads 32 | 2 . 1 . . 1 3 3 . 2 2 . . 2 . . . 11 . 5 Leg 2 | . . . . . . . . . . . . . . 1 . . . . 1 Wheel 3 | . 1 . 1 . 1 . . . . . . . . . . . . . . Hover 4 | . . . . . . . . . . . . . . . . . . . 4 Flight 15 | . . . . . . . . . . . . . 5 2 5 . 1 . 2 Utility 91 | 2 3 . 1 . . 7 3 5 1 4 2 . 15 9 2 2 6 10 19 Device 45 | 1 . . 1 . . 4 1 1 1 . 1 . 10 5 2 . 4 7 7 Storage 5 | 1 2 . . . . . . . . . . . . . . . 1 . 1 Processor 15 | . . . . . . 1 . 2 . . . . 2 2 . . 1 2 5 Hackware 4 | . . . . . . . . . . . . . 1 1 . 1 . . 1 Protection 22 | . 1 . . . . 2 2 2 . 4 1 . 2 1 . 1 . 1 5 Artifact . | . . . . . . . . . . . . . . . . . . . . Weapon 53 | 2 2 1 1 . 4 4 2 3 1 5 . . 4 . 2 2 6 1 13 Energy Gun 14 | 1 . . . . . . . . . 3 . . 1 . 1 1 2 . 5 Energy Cannon 10 | . . . . . . 1 . 2 1 . . . 1 . 1 1 1 1 1 Ballistic Gun 8 | 1 1 1 . . 1 1 1 . . 2 . . . . . . . . . Ballistic Cannon 1 | . . . . . . . . . . . . . . . . . 1 . . Launcher 8 | . 1 . . . 1 1 . 1 . . . . . . . . 1 . 3 Special Weapon 4 | . . . . . 2 . . . . . . . 1 . . . 1 . . Impact Weapon 2 | . . . . . . . 1 . . . . . . . . . . . 1 Slashing Weapon 5 | . . . 1 . . 1 . . . . . . 1 . . . . . 2 Piercing Weapon 1 | . . . . . . . . . . . . . . . . . . . 1 Special Melee Weapon . | . . . . . . . . . . . . . . . . . . . . Unidentified Prototypes 51 | . . . . . . . 1 1 . 4 . . 1 2 . 6 5 10 21 Corrupted Parts 3 | . . . . . . . . . 1 . . . . . . . . . 2 System Corruption 21 | . . . . . . . . . 1 . . . . . . . . . 20 Parts Lost 80 | . 2 2 . . . 4 . 1 1 . . . 30 7 1 . 1 2 29 Power 15 | . 1 . . . . 2 . . . . . . 3 1 . . 1 2 5 Propulsion 21 | . 1 1 . . . 1 . . . . . . 6 3 . . . . 9 Utility 23 | . . . . . . 1 . 1 1 . . . 12 2 . . . . 6 Weapon 21 | . . 1 . . . . . . . . . . 9 1 1 . . . 9 Highest Loss Streak 11 | . 1 2 . . . 4 . 1 1 . . . 11 3 1 . 1 2 8 To Critical Strikes 1 | . . . . . . . . . . . . . . . . . . . 1 Average Backups 13 | 3 9 14 17 19 8 10 17 16 15 16 16 18 13 4 4 3 9 14 15 Power . | . . 1 1 1 . . 1 1 1 1 2 1 . . . . . . . Propulsion 1 | 1 1 2 2 3 1 . 1 2 2 2 3 3 2 . . . 3 2 . Utility 5 | . 3 7 8 9 3 4 6 5 4 3 4 6 6 3 4 2 4 5 7 Weapon 3 | 1 3 4 5 6 2 4 8 7 8 8 7 7 4 . . . . . 2 Tool/Special . | . . . . . . . . . . . . . . . . . . . . Unused Backups 57 | . 2 1 2 . 17 . 5 2 1 3 1 . 2 . 2 . 2 4 13 Power 4 | . . . . . . . 1 . . 1 . . 1 . . . . . 1 Propulsion 4 | . . . 1 . 1 . . . . . . . . . . . . 1 1 Utility 26 | . 1 . 1 . 8 . 2 . 1 . 1 . 1 . 1 . 2 2 6 Weapon 18 | . 1 1 . . 8 . 2 2 . 2 . . . . 1 . . . 1 Tool/Special 5 | . . . . . . . . . . . . . . . . . . 1 4 Average Slot Usage (%) 85 | . 99 99 100 100 78 91 88 84 81 87 86 80 76 63 67 68 80 85 83 Engine 4 | . 13 14 14 14 13 4 . . . . . . . 4 3 5 1 . . Reactor 5 | . . . . . . . 8 13 13 13 13 13 8 . 1 . 3 8 8 Treads 14 | . 23 13 14 14 13 22 19 13 14 18 13 13 10 . . . 9 18 14 Wheel 3 | . 4 14 14 14 14 3 . . . . . . . . . . . . . Flight 1 | . . . . . . . . . . . . . 1 13 16 20 9 . . Device 10 | . 8 . 9 . . 12 10 14 13 6 6 13 12 10 14 8 19 15 13 Storage 7 | . 14 14 14 14 14 6 6 6 6 6 6 6 4 . . . 2 4 4 Processor 6 | . . . . . . 5 6 4 6 6 6 6 5 17 16 14 9 11 14 Hackware 2 | . . . . . . . . . . . . . 3 4 5 7 6 4 5 Protection 5 | . 5 14 4 14 2 12 11 11 6 15 20 6 5 5 4 5 2 4 1 Energy Gun 3 | . 2 . . . . . . . . 6 13 13 7 2 1 . 1 4 7 Energy Cannon 5 | . . . . . . 5 6 11 14 9 6 6 4 . 1 5 4 12 4 Ballistic Gun 5 | . 24 27 17 . 1 12 6 6 4 2 . . 3 . . . . . . Launcher 1 | . . . 6 14 3 . . . . . . . . . . . . . 1 Slashing Weapon 2 | . . . 3 14 12 . 4 1 . . . . . 2 . . . . 1 Peak Build Rating 233 | 7 8 9 16 16 17 42 78 88 88 123 124 111 135 75 99 112 169 181 233 Average Rating 96 | 5 7 8 10 16 11 35 62 81 86 105 123 110 107 62 77 83 139 170 201 On Entrance 68 | . 7 8 8 16 16 16 41 77 88 85 123 111 110 52 70 84 112 169 178 Naked Turns . | . . . . . . . . . . . . . . . . . . . . Heaviest Build 133 | 12 51 51 54 54 54 83 104 125 125 125 126 120 133 23 37 57 100 116 113 Greatest Support 260 | 40 40 16 20 20 20 91 140 140 140 160 160 160 160 28 39 31 260 260 235 Greatest Overweight (x) 10 | . 3 3 3 2 5 7 1 . 1 . . . 1 3 1 1 10 1 7 Average Overweight (x) 1 | . . 3 2 2 4 4 . . . . . . . . . . . . . Largest Inventory Capacity 25 | 8 20 20 20 20 20 20 20 20 20 20 20 20 20 5 5 5 15 15 25 Average Capacity 16 | 7 12 20 20 20 20 20 20 20 20 20 20 20 17 5 5 5 10 15 16 Most Carried 25 | 5 17 16 20 20 20 19 20 20 20 20 20 20 20 5 5 5 15 15 25 Average Carried 14 | 3 9 14 17 20 8 12 19 19 19 19 19 20 15 4 4 3 9 14 15 Final Capacity 25 | 8 20 20 20 20 20 20 20 20 20 20 20 20 5 5 5 5 15 15 25 Final Carried 24 | 5 16 14 20 20 20 13 20 20 20 20 20 20 5 5 5 5 15 14 24 Class Distribution -------------------- 31% | Mutant 24% | Scavenger-Tank 15% | Scavenger-Skirmisher 4% | Scavenger-Mutant 3% | Hacker-Gunner Dominant Class ---------------- Mutant | -10/Materials Mutant | -10/Mines Mutant | -10/Subcaves Mutant | -9/Recycling Mutant | -9/Scraptown Tank | -6/Factory Scavenger-Mutant | -6/Waste Scavenger-Tank | -6/Factory Scavenger-Tank | -6/Extension Scavenger-Tank | -6/Cetus Scavenger-Tank | -6/Archives Scavenger-Tank | -6/Hub_04(d) Scavenger-Tank | -5/Factory Scavenger-Ninja | -4/Factory Scout | -4/Armory Sprinter | -4/Lab Scavenger-Tank | -3/Research Scavenger-Skirmisher | -3/Quarantine Scavenger-Skirmisher | -3/Protoforge Resources | -11 -10 -10 -10 -9 -9 -6 -6 -6 -6 -6 -6 -6 -5 -4 -4 -4 -3 -3 -3 ----------- Run | Yrd Mat Min Sub Rec Scr Fac Was Fac Ext Cet Arc Hub Fac Fac Arm Lab Res Qua Frg Matter Collected 6086 | 277 350 160 121 20 40 454 204 204 232 226 8 39 1122 232 20 . 435 187 1755 Remotely 153 | . . . . . . . . . . . . . . . . . . . 153 Salvage Created 12643 | 62 649 134 180 238 264 263 305 708 697 89 141 691 2863 609 . . 713 1107 2930 Parts 605 | 7 47 8 21 6 17 9 3 22 44 4 11 26 101 33 . . 18 64 164 Haulers Intercepted 7 | . 1 . . . . 1 . . . . . 1 1 . . . 2 1 . Recyclers Shooed 6 | 1 2 . . . . . . 2 1 . . . . . . . . . . Parts Field Recycled . | . . . . . . . . . . . . . . . . . . . . Retrieved Matter . | . . . . . . . . . . . . . . . . . . . . Parts Self-Destructed 27 | . . . 13 . 14 . . . . . . . . . . . . . . Prevented . | . . . . . . . . . . . . . . . . . . . . Kills | -11 -10 -10 -10 -9 -9 -6 -6 -6 -6 -6 -6 -6 -5 -4 -4 -4 -3 -3 -3 ------- Run | Yrd Mat Min Sub Rec Scr Fac Was Fac Ext Cet Arc Hub Fac Fac Arm Lab Res Qua Frg Combat Hostiles Destroyed 186 | . 18 3 3 . . 8 . 9 10 1 1 8 60 . . . 4 13 48 Melee 4 | . . . . . . . . . . . . . 2 . . . . . 2 Guns 63 | . 12 3 . . . 3 . 3 . . 1 . 18 . . . 1 . 22 Cannons 53 | . . . . . . 1 . 5 8 1 . . 12 . . . 3 11 12 AOE 57 | . 6 . 3 . . 4 . 1 1 . . 5 27 . . . . . 10 Classes Destroyed 26 | 1 5 . 1 1 . . . 3 3 . . 1 5 . . . 2 . 4 Worker 7 | . . . . . . . . . . . . 4 2 . . . . . 1 Builder 16 | . 2 . . . . . . . 1 . . . 2 8 . . 1 2 . Tunneler 4 | 3 1 . . . . . . . . . . . . . . . . . . Hauler 7 | . 1 . . . . 1 . . . . . 1 1 . . . 2 1 . Recycler 8 | . . . . 3 . . . 1 . . . . . 3 . . . 1 . Carrier 1 | . . . . . . . . . . . . . . . . . . . 1 Operator 7 | . . . . . . . . 1 1 . 2 1 . . . . 1 . 1 Watcher 18 | . 1 . . . . . . 2 1 1 . . 5 1 . . 4 2 1 Swarmer 17 | . 3 . 2 . . 4 . . . . . . 4 . . . . 4 . Saboteur 1 | . . . . . . . . . . . . . 1 . . . . . . Grunt 68 | . 15 3 . . . 4 . 6 1 . . 8 26 . . . 1 2 2 Brawler 3 | . . . . . . . . 1 . . . . 2 . . . . . . Duelist 3 | . . . . . . . . . . . . . 2 . . . . . 1 Protector 3 | . . . . . . . . . . . . . 2 . . . . . 1 Sentry 21 | . . . . . . . . 2 5 . 1 . 2 . . . 1 . 10 Specialist 7 | . . . . . . . . . 1 . . . 6 . . . . . . Hunter 8 | . . . . . . . . . . . . . 5 . . . . . 3 Programmer 41 | . . . . . . . . . 1 . . . 9 . . . . 8 23 Heavy 1 | . . . . . . . . . . . . . 1 . . . . . . Behemoth 2 | . . . . . . . . . 2 . . . . . . . . . . Cetus Guard 1 | . . . . . . . . . . 1 . . . . . . . . . Hotshot 2 | . . . . . . . . . . . . . . . . . . . 2 Decapitator 3 | . . . . . . . . . . . . . . . . . . . 3 Immortal 2 | . . . . . . . . . . . . . . . . . . . 2 Striker 1 | . . . . . . . . . . . . . . . . . 1 . . Executioner 1 | . . . . . . . . . . . . . . . . . 1 . . V-Series 1 | . . . . . . . . . . . . . . . . . . . 1 Subdweller 1 | . . . 1 . . . . . . . . . . . . . . . . Tinkerer 1 | . . . . . . . . . . . . . . . . . . . 1 Best Kill Streak 13 | 2 5 2 2 2 . 8 . 7 4 1 2 13 12 2 . . 3 4 5 Combat Bots Only 11 | . 5 2 2 . . 8 . 7 3 1 1 8 11 . . . 2 3 4 Max Kills in Single Turn 9 | 1 2 1 2 1 . 3 . 1 1 1 1 9 6 1 . . 1 1 4 Gunslinging 1 | . . . . . . . . . . . . . . . . . . . 1 Exploded 6 | . 2 . 2 . . 3 . 1 1 . . 5 6 . . . . . 3 Melee 1 | . . . . . . . . . . . . . 1 . . . . . 1 Uniques/NPCs Destroyed 1 | . . . . . . . . . . . 1 . . . . . . . . A7 (-6/Archives) Combat | -11 -10 -10 -10 -9 -9 -6 -6 -6 -6 -6 -6 -6 -5 -4 -4 -4 -3 -3 -3 -------- Run | Yrd Mat Min Sub Rec Scr Fac Was Fac Ext Cet Arc Hub Fac Fac Arm Lab Res Qua Frg Hostile Shots Fired 1633 | . 79 13 10 . . 60 . 92 161 9 8 45 533 75 19 . 12 166 351 Missed 487 | . 19 4 3 . . 17 . 42 60 3 3 18 160 46 7 . . 50 55 Deflected 7 | . . . . . . . . . . . . . . . . . . . 7 Hits 1146 | . 60 9 7 . . 43 . 50 101 6 5 27 373 29 12 . 12 116 296 Melee 57 | . . . . . . . . 2 . . . . 8 1 1 . 1 . 44 Projectile 1089 | . 60 9 7 . . 43 . 48 101 6 5 27 365 28 11 . 11 116 252 AOE 7 | . . . . . . . . . 1 . . . 1 . . . 1 . 4 Critical Strikes 72 | . . . . . . 3 . 2 . 2 . . 18 2 . . . 8 37 Actively Blocked 1 | . . . . . . . . . . . . . . . . . . . 1 Part Disruptions 6 | . . . . . . . . . . . . . 2 . . . . 1 3 Damage Taken 23934 | . 691 110 106 . . 649 . 355 402 302 125 471 7623 585 171 . 519 2158 9667 Core 3113 | . 142 12 64 . . 37 . 20 14 177 . 45 798 331 62 . 80 63 1268 Absorbed by Shields 1625 | . . . . . . 144 . 286 563 27 . . . . . . 112 386 107 Reduced by Siege Mode 609 | . . . . . . . . . . . . . 111 . . . . . 498 Redirected to Shielding 241 | . . . . . . . . . . . . . 6 68 9 . . . 158 Ignored by Resistances 420 | . . . . . . . . . . . . . . . . . . 64 356 Regen/Repaired (Parts) 1323 | . . . . . . . . . . . . . 323 . . . 36 175 789 Core Remaining (%) 52 | 100 . . . . 12 . . . . . . 65 20 . . 65 . . . Volleys Fired 705 | 13 79 11 6 . 3 17 . 28 36 9 21 8 103 23 17 5 53 82 191 Largest 4 | 2 2 2 2 . 1 3 . 3 3 3 3 3 4 1 1 1 2 3 4 Hottest 395 | 60 60 40 50 . . 123 . 198 210 201 190 190 225 80 120 120 207 320 395 Shots Fired 1318 | 23 141 22 10 . 3 37 . 76 96 20 48 14 267 23 17 5 57 89 370 Gun 750 | 23 133 22 6 . . 28 . 26 19 6 27 6 152 23 7 . 4 3 265 Cannon 520 | . . . . . . 7 . 48 76 14 21 8 102 . 10 5 53 86 90 Launcher 45 | . 8 . 4 . . 2 . 2 1 . . . 13 . . . . . 15 Special 3 | . . . . . 3 . . . . . . . . . . . . . . Kinetic 295 | 13 123 22 6 . . 28 . 26 19 . . . 58 . . . . . . Thermal 975 | 10 10 . . . . 7 . 48 76 20 48 14 196 23 17 5 57 89 355 Explosive 45 | . 8 . 4 . . 2 . 2 1 . . . 13 . . . . . 15 Electromagnetic . | . . . . . . . . . . . . . . . . . . . . Robot Hit Streak 52 | 3 13 8 2 . 3 14 . 21 32 3 7 6 16 5 1 . 23 52 26 Robot Miss Streak 9 | 3 6 3 1 . . 2 . 3 3 3 3 1 9 2 2 . . 2 7 Penetration Max 1 | . . . . . . . . . . . . . 1 . . . . . 1 Secondary Targets 5 | . . 1 . . . . . . . . . . . . . . . . 4 Max Gunslinging Chain 1 | . . 1 . . . . . . . . . . . . . . . . 1 Shots Hit Robots 818 | 13 88 15 16 5 15 26 5 48 55 9 25 9 167 25 1 . 23 39 234 Core Hits 467 | 4 46 6 8 1 5 18 3 27 26 3 11 23 128 12 . . 9 17 120 Critical Kills 16 | . . . . . . . . . 1 . . . 4 . . . 4 5 2 Critical Parts Destroyed 5 | . . . . . . 1 . . . . . . 4 . . . . . . Critical Strikes 29 | . . . . . 2 1 . . 1 . . . 8 . . . 4 5 8 Meltdown 13 | . . . . . . . . . 1 . . . 1 . . . 4 5 2 Destroy 8 | . . . . . . 1 . . . . . . 7 . . . . . . Sever 8 | . . . . . 2 . . . . . . . . . . . . . 6 Melee Attacks 108 | . . . 17 5 12 2 5 3 . . . . 14 22 . . . . 28 Impact 8 | . . . . . . . . . . . . . 8 . . . . . . Slashing 100 | . . . 17 5 12 2 5 3 . . . . 6 22 . . . . 28 Piercing . | . . . . . . . . . . . . . . . . . . . . Sneak Attacks 15 | . . . 1 4 . . . . . . . . . 8 . . . . 2 Combat Hostiles 1 | . . . . . . . . . . . . . . . . . . . 1 Follow-up Attacks . | . . . . . . . . . . . . . . . . . . . . Martial Strikes 1 | . . . . . . . . . . . . . . . . . . . 1 Damage Inflicted 40035 | 154 1514 160 1090 312 663 1179 391 1689 1867 291 783 1763 11423 1182 20 . 1579 2231 11744 Guns 11623 | 154 897 160 26 . . 317 . 377 264 84 489 179 3055 458 20 . 111 27 5005 Cannons 12812 | . . . . . . 127 . 1026 1493 207 294 99 2861 . . . 1450 2204 3051 Explosions 11306 | . 617 . 227 . . 735 . 286 110 . . 1451 5122 . . . . . 2758 Melee 4226 | . . . 837 312 663 . 391 . . . . . 369 724 . . . . 930 Ramming 68 | . . . . . . . . . . . . 34 16 . . . 18 . . Kinetic 3027 | 66 781 160 26 . . 317 . 377 264 . . . 1036 . . . . . . Thermal 22252 | 88 116 . . . . 127 . 1026 1493 291 783 278 5724 458 20 . 1561 2231 8056 Explosive 8913 | . 617 . 227 . . 735 . 286 110 . . . 4180 . . . . . 2758 Electromagnetic 1549 | . . . . . . . . . . . . 1451 98 . . . . . . Impact 369 | . . . . . . . . . . . . . 369 . . . . . . Slashing 3857 | . . . 837 312 663 . 391 . . . . . . 724 . . . . 930 Piercing . | . . . . . . . . . . . . . . . . . . . . Highest Corruption 77 | . . . . . . . . 3 4 4 4 6 10 . . . . 13 77 Average Corruption 20 | . . . . . . . . 3 3 4 4 4 4 . . . . 2 42 Corruption Purged . | . . . . . . . . . . . . . . . . . . . . Corruption Blocked . | . . . . . . . . . . . . . . . . . . . . Effects 385 | . . . . . . . . 7 35 14 5 4 30 . . . . 23 267 Message Errors 67 | . . . . . . . . 3 7 3 . 1 6 . . . . 3 44 Matter Fused 103 | . . . . . . . . 2 9 5 2 2 10 . . . . 8 65 Heat Flow Errors 48 | . . . . . . . . . 4 4 . . 2 . . . . 2 36 Energy Discharges 30 | . . . . . . . . 2 4 1 . . 4 . . . . 1 18 Parts Rejected 5 | . . . . . . . . . 1 . . 1 . . . . . . 3 Parts Fused 10 | . . . . . . . . . 4 . . . 2 . . . . 1 3 Data Loss (minor) 33 | . . . . . . . . . 4 1 . . 2 . . . . 5 21 Data Loss (major) 21 | . . . . . . . . . 1 . . . 3 . . . . 2 15 Misfires 18 | . . . . . . . . . 1 . 2 . 1 . . . . 1 13 Alerts 3 | . . . . . . . . . . . . . . . . . . . 3 Misdirections 4 | . . . . . . . . . . . . . . . . . . . 4 Weapon Failures 43 | . . . . . . . . . . . 1 . . . . . . . 42 Overload Shots 19 | . . . . . . . . . 6 2 . 3 8 . . . . . . Effects 2 | . . . . . . . . . . . . . 2 . . . . . . Energy Bleed 1 | . . . . . . . . . . . . . 1 . . . . . . Short Circuit 1 | . . . . . . . . . . . . . 1 . . . . . . Overflow Damage 1527 | . 11 . 66 112 20 60 42 . 4 . 32 44 422 156 . . 94 145 319 Projectiles 711 | . . . . . . . . . 4 . 32 . 228 . . . 94 145 208 Explosions 302 | . 11 . . . . 60 . . . . . 44 171 . . . . . 16 Melee 514 | . . . 66 112 20 . 42 . . . . . 23 156 . . . . 95 Knockbacks 2 | . . . . . . . . . . . . . 2 . . . . . . Impact 1 | . . . . . . . . . . . . . 1 . . . . . . Kinetic . | . . . . . . . . . . . . . . . . . . . . Secondary 1 | . . . . . . . . . . . . . 1 . . . . . . Self-Inflicted Damage 730 | . . . 10 . . . . 14 . . . 143 385 . . . . . 178 Shots 11 | . . . 1 . . . . 1 . . . 2 5 . . . . . 2 Rammed 5 | . . . . . . . . . . . . 2 2 . . . 1 . . Targets Rammed 5 | . . . . . . . . . . . . 2 2 . . . 1 . . Kicked . | . . . . . . . . . . . . . . . . . . . . Crushed . | . . . . . . . . . . . . . . . . . . . . Highest Temperature 545 | . 66 18 . . . 327 . 336 353 545 150 66 400 120 369 210 404 190 297 Average Temperature 94 | . 13 6 . . . 117 . 99 88 164 59 29 111 29 136 97 125 98 81 Received Heat Transfer 3359 | . 354 60 . . . 228 . 132 118 18 18 114 1737 54 . . 13 81 432 Effects 17 | . . . . . . 1 . 1 . 2 . . 3 . 2 . 8 . . Shutdowns 8 | . . . . . . . . 1 . 1 . . 3 . . . 3 . . Energy Bleed 3 | . . . . . . 1 . . . . . . . . 1 . 1 . . Interference 3 | . . . . . . . . . . . . . . . . . 3 . . Short Circuit 1 | . . . . . . . . . . . . . . . 1 . . . . Damage (minor) 1 | . . . . . . . . . . . . . . . . . 1 . . Damage (core) 1 | . . . . . . . . . . 1 . . . . . . . . . Siege Activations 16 | . . . . . . . . . . . . . 4 . . . . . 12 Total Turns 351 | . . . . . . . . . . . . . 60 . . . . . 291 Longest Duration 69 | . . . . . . . . . . . . . 20 . . . . . 69 Martial Activations . | . . . . . . . . . . . . . . . . . . . . Shielding Activations . | . . . . . . . . . . . . . . . . . . . . Robots Disrupted . | . . . . . . . . . . . . . . . . . . . . Combat Hostiles . | . . . . . . . . . . . . . . . . . . . . Robots Corrupted 4 | . . . . . . . . . . . . 4 . . . . . . . Combat Hostiles 3 | . . . . . . . . . . . . 3 . . . . . . . Parts Fried 7 | . . . . . . . . . . . . 6 1 . . . . . . Impact Corruptions 2 | . . . . . . . . . . . . . 2 . . . . . . Robots Melted 13 | . . . . . . . . . 1 . . . 1 . . . 4 5 2 Combat Hostiles 6 | . . . . . . . . . 1 . . . 1 . . . . 2 2 Parts Melted 43 | . . . . . . . . 1 6 . 2 . 5 1 . . 8 17 3 Heat Transferred 21286 | 200 250 . . . . 185 . 1295 1702 333 998 370 4501 555 37 . 1369 1739 7752 Parts Sabotaged 18 | . . . . . . . . . . . . . 11 4 3 . . . . Parts Stolen . | . . . . . . . . . . . . . . . . . . . . Parts Stripped . | . . . . . . . . . . . . . . . . . . . . Power Chain Reactions . | . . . . . . . . . . . . . . . . . . . . Alert | -11 -10 -10 -10 -9 -9 -6 -6 -6 -6 -6 -6 -6 -5 -4 -4 -4 -3 -3 -3 ------- Run | Yrd Mat Min Sub Rec Scr Fac Was Fac Ext Cet Arc Hub Fac Fac Arm Lab Res Qua Frg Maximum Alert Level 5 | . 1 . . . . . . . 2 2 1 4 5 4 3 . . . 3 Low Security (%) 61 | 100 64 100 . 100 . 100 100 100 26 . 22 52 . . . . 100 100 59 Level 1 16 | . 35 . . . . . . . 59 92 77 20 . . . . . . 14 Level 2 7 | . . . . . . . . . 13 7 . 23 . . 88 . . . 16 Level 3 6 | . . . . . . . . . . . . . 45 . 11 . . . 9 Level 4 4 | . . . . . . . . . . . . 3 11 100 . . . . . Level 5 1 | . . . . . . . . . . . . . 12 . . . . . . High Security 2 | . . . . . . . . . . . . . 30 . . . . . . Max Security . | . . . . . . . . . . . . . . . . . . . . Peak Influence 2958 | 10 350 99 . 40 . 144 10 154 692 413 266 1455 2958 1473 770 . 58 114 925 Initial 1449 | . . 99 . . . . 10 . 46 380 118 74 707 1449 648 . . 32 22 Average 326 | . 143 15 . 5 . 57 . 88 289 330 210 280 1637 1367 629 . 10 43 238 Influence Increases 11745 | 15 678 70 147 112 25 224 . 320 1580 309 216 1551 2985 512 509 . 341 591 1560 Destroy 0b10 Robot/C 4880 | . 360 60 80 . . 160 . 180 740 160 80 480 1160 . 80 . 100 260 980 Destroy 0b10 Robot/NC 405 | 15 25 . . 15 25 5 . 20 20 10 10 35 60 60 5 . 40 30 30 Destroy Leader 768 | . 64 10 . . . 20 . 34 94 . . 92 232 2 10 . 32 36 142 Allied During Kill 1062 | . . . 7 . . . . . 499 112 90 319 . . 25 . 4 4 2 Successful Hack 498 | . 18 . . 7 . . . 11 21 . . . 88 92 101 . 73 77 10 Select Force Hacks 150 | . 60 . . 90 . . . . . . . . . . . . . . . Disable Machine 1425 | . 45 . . . . 30 . 45 105 15 30 270 465 15 45 . 45 120 195 Anti-Garrison Action 300 | . . . . . . . . . . . . 150 150 . . . . . . Destroy Structure 1057 | . 61 . . . . 9 . 30 56 12 6 205 440 28 18 . 32 64 96 Partial Spotted 135 | . . . . . . . . . . . . . 30 45 60 . . . . Lose Combat Pursuer 1065 | . 45 . 60 . . . . . 45 . . . 360 270 165 . 15 . 105 Influence Decreases 10905 | 15 422 326 147 112 25 194 30 223 997 694 297 320 1472 2145 1177 657 283 608 761 Entered New Map 4471 | . . 157 . . . . 20 . 51 300 177 140 738 1509 677 657 . 26 19 Time Decay 4333 | 15 402 149 127 112 25 154 10 213 546 334 100 80 434 246 130 . 262 562 432 Lost Part 799 | . 20 20 . . . 40 . 10 10 . . . 300 70 10 . 9 20 290 Lost Ally 702 | . . . 20 . . . . . 240 60 20 100 . 20 210 . 12 . 20 Purge Threat 600 | . . . . . . . . . 150 . . . . 300 150 . . . . Squads Dispatched 82 | . 3 . . . . 2 . 3 5 . . 9 29 9 1 . 2 8 11 Investigation 11 | . 3 . . . . . . . 3 . . 3 1 1 . . . . . Extermination 17 | . . . . . . 1 . . . . . . 2 1 1 . . 4 8 Reinforcement 19 | . . . . . . 1 . . 1 . . 4 5 2 . . 2 4 . Assault 31 | . . . . . . . . . 1 . . 2 20 5 . . . . 3 Garrison 4 | . . . . . . . . 3 . . . . 1 . . . . . . Intercept . | . . . . . . . . . . . . . . . . . . . . Searches Triggered . | . . . . . . . . . . . . . . . . . . . . Construction Impeded 4 | . . . . . . . . . . . . 1 . 2 . . . 1 . Haulers Reinforced 3 | . . . . . . . . . . . . 1 . . . . 2 . . Active Scanning Responses . | . . . . . . . . . . . . . . . . . . . . Cargo Convoy Interrupts 1 | . . . . . . . . . . . . . 1 . . . . . . Stealth | -11 -10 -10 -10 -9 -9 -6 -6 -6 -6 -6 -6 -6 -5 -4 -4 -4 -3 -3 -3 --------- Run | Yrd Mat Min Sub Rec Scr Fac Was Fac Ext Cet Arc Hub Fac Fac Arm Lab Res Qua Frg Distress Signals 13 | . 1 . . . . . . 1 . 2 . . 2 1 2 . 4 . . Communications Jammed 24 | . . . . . . . . . . . . . . 2 . . . 6 16 Distress Signals 24 | . . . . . . . . . . . . . . 2 . . . 6 16 Times Spotted 417 | . 28 3 10 . . 11 . 16 30 5 14 18 126 38 19 . 14 21 64 Peak Tracking Total 15 | . 6 2 6 . . 9 . 6 4 5 1 9 15 14 11 . 4 3 10 Tactical Retreats 28 | . 2 . 1 . . . . . 3 . . . 10 5 3 . 1 . 3 Traps | -11 -10 -10 -10 -9 -9 -6 -6 -6 -6 -6 -6 -6 -5 -4 -4 -4 -3 -3 -3 ------- Run | Yrd Mat Min Sub Rec Scr Fac Was Fac Ext Cet Arc Hub Fac Fac Arm Lab Res Qua Frg Traps Triggered 15 | . 1 . . . . 1 . . 1 . . . 3 1 . . 1 . 7 Indirectly 3 | . . . . . . . . . . . . . 3 . . . . . . Trap Hack Attempts . | . . . . . . . . . . . . . . . . . . . . Triggered . | . . . . . . . . . . . . . . . . . . . . Disarmed . | . . . . . . . . . . . . . . . . . . . . Reprogrammed . | . . . . . . . . . . . . . . . . . . . . Reused . | . . . . . . . . . . . . . . . . . . . . Traps Extracted . | . . . . . . . . . . . . . . . . . . . . Installed . | . . . . . . . . . . . . . . . . . . . . Triggered . | . . . . . . . . . . . . . . . . . . . . Machines | -11 -10 -10 -10 -9 -9 -6 -6 -6 -6 -6 -6 -6 -5 -4 -4 -4 -3 -3 -3 ---------- Run | Yrd Mat Min Sub Rec Scr Fac Was Fac Ext Cet Arc Hub Fac Fac Arm Lab Res Qua Frg Machines Disabled 108 | . 3 . 1 . . 2 . 3 7 1 2 19 32 1 3 1 3 8 22 Max in Single Turn 19 | . 1 . 1 . . 1 . 1 1 1 1 19 10 1 1 1 1 1 2 Garrison Access 6 | . . . . . . . . . . . . 1 1 1 . . 1 1 1 Network Hub 2 | . . . . . . . . . . . . 2 . . . . . . . Machines Repaired . | . . . . . . . . . . . . . . . . . . . . Machines Dismantled 4 | . . . . . . . . . . . . . . . . . 1 . 3 Machines Sabotaged . | . . . . . . . . . . . . . . . . . . . . Overloaded Fab Kills . | . . . . . . . . . . . . . . . . . . . . Hacking | -11 -10 -10 -10 -9 -9 -6 -6 -6 -6 -6 -6 -6 -5 -4 -4 -4 -3 -3 -3 --------- Run | Yrd Mat Min Sub Rec Scr Fac Was Fac Ext Cet Arc Hub Fac Fac Arm Lab Res Qua Frg Machines Accessed 84 | . 9 . 1 9 2 2 . 7 11 . . 2 5 8 6 . 7 10 5 Terminals 57 | . 7 . . 6 . 1 . 4 10 . . 2 2 5 4 . 4 8 4 Fabricators 7 | . . . . . . 1 . 1 . . . . 1 1 2 . 1 . . Repair Stations 3 | . . . . . . . . . . . . . 1 . . . 1 1 . Recycling Units 8 | . 2 . . 3 . . . 1 1 . . . . 1 . . . . . Scanalyzers 1 | . . . . . . . . . . . . . 1 . . . . . . Garrison Access 5 | . . . . . . . . 1 . . . . . 1 . . 1 1 1 Total Hacks 311 | . 26 . 1 25 5 4 . 17 23 . . 2 35 52 32 . 38 43 8 Successful 155 | . 17 . 1 18 5 . . 8 6 . . 2 11 20 21 . 19 22 5 Failed 155 | . 8 . . 7 . 4 . 9 17 . . . 24 32 11 . 19 21 3 Catastrophic 31 | . 2 . . . . 1 . 3 5 . . . 4 7 1 . 4 3 1 Database Lockouts 1 | . 1 . . . . . . . . . . . . . . . . . . Manual 151 | . 20 . . 21 . 4 . 8 7 1 . 2 3 26 15 . 17 24 3 Terminals 218 | . 22 . . 19 . 3 . 11 21 . . 2 8 39 23 . 26 37 7 Fabricators 28 | . . . . . . 1 . 2 . . . . 6 4 9 . 6 . . Repair Stations 27 | . . . . . . . . . . . . . 18 . . . 5 4 . Recycling Units 16 | . 4 . . 6 . . . 2 2 . . . . 2 . . . . . Scanalyzers 3 | . . . . . . . . . . . . . 3 . . . . . . Garrison Access 13 | . . . . . . . . 2 . . . . . 7 . . 1 2 1 Terminal Hacks 80 | . 5 . 1 4 5 . . 5 5 . . . 2 13 12 . 10 16 2 Record 2 | . . . . . . . . . . . . . . . . . . 1 1 Part Schematic 1 | . . . . 1 . . . . . . . . . . . . . . . Robot Analysis 8 | . 1 . . 2 4 . . . . . . . . . . . 1 . . Prototype ID Bank 3 | . 1 . . . . . . . . . . . . . . . . 2 . Open Door 4 | . . . . . . . . 1 3 . . . . . . . . . . Level Access Points 1 | . . . . . . . . . . . . . . . . . . 1 . Branch Access Points 3 | . . . . . . . . 1 . . . . . 1 . . 1 . . Emergency Access Points 1 | . . . . . . . . . . . . . . . 1 . . . . Terminal Index 7 | . 1 . . 1 . . . 1 . . . . . 1 1 . 1 1 . Alert Level 7 | . . . . . . . . 1 1 . . . . 2 1 . 1 1 . Unreport Threat 4 | . . . . . . . . . 1 . . . . 2 1 . . . . Locate Traps 8 | . 2 . . . . . . . . . . . . 1 2 . . 3 . Dispatch Records 3 | . . . . . . . . . . . . . . . 1 . 1 1 . Patrol Status 1 | . . . . . . . . . . . . . . . . . . 1 . Recall Investigation 2 | . . . . . . . . . . . . . . 2 . . . . . Recall Extermination 2 | . . . . . . . . . . . . . 1 . . . . 1 . Recall Reinforcements 2 | . . . . . . . . . . . . . . . 1 . . 1 . Hauler Manifests 1 | . . . . . . . . . . . . . . . . . 1 . . Registered Components 5 | . . . . . . . . 1 . . . . 1 1 1 . 1 . . Registered Prototypes 3 | . . . . . . . . . . . . . . 1 1 . 1 . . Zone Layout 9 | . . . . . . . . . . . . . . 2 2 . 2 3 . Proto ID Catalog 3 | . . . 1 . 1 . . . . . . . . . . . . . 1 Fabricator Hacks 3 | . . . . . . . . . . . . . . . 1 . 2 . . Network Status 2 | . . . . . . . . . . . . . . . 1 . 1 . . Load Schematic 1 | . . . . . . . . . . . . . . . . . 1 . . Repair Station Hacks 9 | . . . . . . . . . . . . . 6 . . . 1 2 . Scan Component 5 | . . . . . . . . . . . . . 4 . . . . 1 . Repair 3 | . . . . . . . . . . . . . 2 . . . . 1 . Refit 1 | . . . . . . . . . . . . . . . . . 1 . . Recycling Unit Hacks 10 | . 2 . . 3 . . . 2 1 . . . . 2 . . . . . Report Inventory 8 | . 2 . . 3 . . . 1 1 . . . . 1 . . . . . Retrieve Components 2 | . . . . . . . . 1 . . . . . 1 . . . . . Scanalyzer 2 | . . . . . . . . . . . . . 2 . . . . . . Insert Component 1 | . . . . . . . . . . . . . 1 . . . . . . Analyze 1 | . . . . . . . . . . . . . 1 . . . . . . Garrison Access Hacks 3 | . . . . . . . . . . . . . . . . . 1 1 1 Seal Access 3 | . . . . . . . . . . . . . . . . . 1 1 1 Unauthorized Hacks 47 | . 10 . . 11 . . . 1 . . . 2 1 5 7 . 5 3 2 Terminals 33 | . 8 . . 8 . . . 1 . . . 2 1 3 3 . 2 3 2 Assimilate 2 | . . . . . . . . . . . . . . 1 1 . . . . Botnet 18 | . 2 . . 3 . . . 1 . . . . 1 2 2 . 2 3 2 Skim 11 | . 6 . . 5 . . . . . . . . . . . . . . . Sabotage 2 | . . . . . . . . . . . . 2 . . . . . . . Fabricators 9 | . . . . . . . . . . . . . . 2 4 . 3 . . Report 3 | . . . . . . . . . . . . . . 1 1 . 1 . . Liberate 2 | . . . . . . . . . . . . . . . 1 . 1 . . Fabnet 4 | . . . . . . . . . . . . . . 1 2 . 1 . . Repair Stations . | . . . . . . . . . . . . . . . . . . . . Recycling Units 5 | . 2 . . 3 . . . . . . . . . . . . . . . Tunnel 5 | . 2 . . 3 . . . . . . . . . . . . . . . Scanalyzers . | . . . . . . . . . . . . . . . . . . . . Garrison Access . | . . . . . . . . . . . . . . . . . . . . Data Cores Recovered 6 | . . . . . . . . 1 1 . . 1 . . 1 . 1 . 1 Used 4 | . . . . . . . . 1 1 . . . . . . . 1 . 1 Hacking Detections 56 | . 7 . . 5 . 2 . 6 10 . . . 5 6 5 . 3 5 2 Full Trace Events 5 | . . . . . . . . . 3 . . . 1 1 . . . . . Feedback Events 1 | . . . . . . . . . . . . . 1 . . . . . . Corruption 1 | . . . . . . . . . . . . . 1 . . . . . . Feedback Blocked . | . . . . . . . . . . . . . . . . . . . . Robot Schematics Acquired . | . . . . . . . . . . . . . . . . . . . . Robots Built . | . . . . . . . . . . . . . . . . . . . . Authchips . | . . . . . . . . . . . . . . . . . . . . Time . | . . . . . . . . . . . . . . . . . . . . Total Robot Build Rating . | . . . . . . . . . . . . . . . . . . . . Part Schematics Acquired 2 | . . . . 1 . . . . . . . . 1 . . . . . . Parts Built . | . . . . . . . . . . . . . . . . . . . . Authchips . | . . . . . . . . . . . . . . . . . . . . Time . | . . . . . . . . . . . . . . . . . . . . Total Part Build Rating . | . . . . . . . . . . . . . . . . . . . . Parts Repaired 3 | . . . . . . . . . . . . . 2 . . . . 1 . Time 131 | . . . . . . . . . . . . . 111 . . . . 20 . Parts Recycled . | . . . . . . . . . . . . . . . . . . . . Recycled Matter . | . . . . . . . . . . . . . . . . . . . . Retrieved Matter . | . . . . . . . . . . . . . . . . . . . . Retrieved Components 3 | . . . . . . . . 2 . . . . . 1 . . . . . Parts Scanalyzed 1 | . . . . . . . . . . . . . 1 . . . . . . Part Schematics Acquired 1 | . . . . . . . . . . . . . 1 . . . . . . Parts Damaged . | . . . . . . . . . . . . . . . . . . . . Bothacking | -11 -10 -10 -10 -9 -9 -6 -6 -6 -6 -6 -6 -6 -5 -4 -4 -4 -3 -3 -3 ------------ Run | Yrd Mat Min Sub Rec Scr Fac Was Fac Ext Cet Arc Hub Fac Fac Arm Lab Res Qua Frg Used RIF Installer . | . . . . . . . . . . . . . . . . . . . . Robots Hacked 16 | . . . . . . . . . . . . . . . . . 10 3 3 Non-combat . | . . . . . . . . . . . . . . . . . . . . Combat 16 | . . . . . . . . . . . . . . . . . 10 3 3 Robot Hacks Applied . | . . . . . . . . . . . . . . . . . . . . Relay Couplers Released 4 | . . . . . . . . . . . . 3 . 1 . . . . . Machine Destruction 4 | . . . . . . . . . . . . 3 . 1 . . . . . Fabnet Peak Effective % 9 | . . . . . . . . . . . . . . . . . 9 9 9 Autooverrided 16 | . . . . . . . . . . . . . . . . . 10 3 3 Robots Rewired 11 | . . . . . . . . . 11 . . . . . . . . . . Allies Hacked . | . . . . . . . . . . . . . . . . . . . . Hacks Repelled . | . . . . . . . . . . . . . . . . . . . . Allies | -11 -10 -10 -10 -9 -9 -6 -6 -6 -6 -6 -6 -6 -5 -4 -4 -4 -3 -3 -3 -------- Run | Yrd Mat Min Sub Rec Scr Fac Was Fac Ext Cet Arc Hub Fac Fac Arm Lab Res Qua Frg Total Allies 58 | . . 3 . . . . . . 22 5 . . . 1 11 . 10 3 3 Largest Group 13 | . . 3 3 1 . . . . 13 8 8 6 . 1 10 . 2 1 1 Highest-Rated Group 696 | . . 40 40 16 . . . . 470 696 696 512 . 26 481 . 120 82 64 Highest-Rated Ally 159 | . . 16 16 16 . . . . 159 138 138 96 . 26 58 . 64 82 64 Total Orders 9 | . . . . 1 . . . . . 6 . . . 1 1 . . . . STAY 1 | . . . . 1 . . . . . . . . . . . . . . . ROAM 2 | . . . . . . . . . . 1 . . . . 1 . . . . FOLLOW 3 | . . . . . . . . . . 3 . . . . . . . . . AID 2 | . . . . . . . . . . 2 . . . . . . . . . EXPLORE 1 | . . . . . . . . . . . . . . 1 . . . . . Ally Attacks 367 | . . . 8 . . . . . 180 52 20 45 . . 36 . 16 7 3 Total Damage 9335 | . . . 97 . . . . . 4040 1151 658 1704 . . 1030 . 436 64 155 Kills 71 | . . . 3 . . . . . 32 8 3 18 . . 5 . 1 . 1 Allies Corrupted . | . . . . . . . . . . . . . . . . . . . . Allies Melted 4 | . . . . . . . . . 1 . . 3 . . . . . . . Intel | -11 -10 -10 -10 -9 -9 -6 -6 -6 -6 -6 -6 -6 -5 -4 -4 -4 -3 -3 -3 ------- Run | Yrd Mat Min Sub Rec Scr Fac Was Fac Ext Cet Arc Hub Fac Fac Arm Lab Res Qua Frg Active Infowar (turns) 14514 | 69 718 . 857 . . 77 . 176 1569 754 211 160 1540 527 266 143 1117 1965 4365 Optics 12755 | . . . . . . . . 176 1569 754 211 160 1540 527 266 143 1079 1965 4365 Sensors 6112 | . . . . . . 77 . . . . . . 130 429 259 37 1117 1643 2420 IFF 39 | . . . . . . . . . . . . . 39 . . . . . . Structural 3980 | . . . 857 . . . . . . . . . . 173 246 42 549 1518 595 Seismic 787 | 69 718 . . . . . . . . . . . . . . . . . . Triangulation 73 | . . . . . . . . . . . . . 31 4 . 20 18 . . Cloaking 1057 | . . . . . . . . . . . . . . . 23 . 166 . 868 Jamming 4068 | . . . . . . . . . . . . . . 242 . . 340 1817 1669 Robot Analysis Total 8 | . 1 . . 2 4 . . . . . . . . . . . 1 . . Derelict Logs Recovered 8 | . . 1 2 . 5 . . . . . . . . . . . . . . Drone Launches 1 | . . . . . . . . . . . . . . 1 . . . . . Drone Recoveries . | . . . . . . . . . . . . . . . . . . . . Exploration | -11 -10 -10 -10 -9 -9 -6 -6 -6 -6 -6 -6 -6 -5 -4 -4 -4 -3 -3 -3 ------------- Run | Yrd Mat Min Sub Rec Scr Fac Was Fac Ext Cet Arc Hub Fac Fac Arm Lab Res Qua Frg Turns Passed 21109 | 154 1230 931 1217 643 2559 441 724 593 1569 754 211 160 1540 527 266 143 1117 1965 4365 Spaces Moved 12731 | 69 646 616 685 474 1712 151 413 298 744 330 88 84 903 910 521 245 1279 1020 1543 Core 25 | 6 . . . . . . . . . . . . 18 1 . . . . . Treads 5643 | 63 353 . . . . 65 413 298 744 330 88 84 461 . . . 292 1020 1432 Legs 52 | . . . . . . . . . . . . . . . . . . . 52 Wheels 3866 | . 293 616 685 474 1712 86 . . . . . . . . . . . . . Hover 59 | . . . . . . . . . . . . . . . . . . . 59 Flight 3086 | . . . . . . . . . . . . . 424 909 521 245 987 . . Fastest Speed 26 | 50 115 145 130 130 130 156 160 160 160 160 160 160 30 30 26 28 26 152 152 Average Speed 125 | 150 143 145 144 130 142 175 160 160 160 160 160 160 100 32 33 30 61 158 176 Slowest Speed 510 | 160 240 145 145 130 155 240 240 160 240 160 160 160 240 200 120 108 161 232 510 Overloaded Moves . | . . . . . . . . . . . . . . . . . . . . Propulsion Burnouts . | . . . . . . . . . . . . . . . . . . . . Robots Hopped 34 | . . . . . . . . . . . . . 5 14 8 . 7 . . Potential Cave-ins 43 | . . . . . . . . . . . . . . . . . . . 43 Cave-ins Triggered . | . . . . . . . . . . . . . . . . . . . . Teleports 1 | . . . . . . . . . . . . . . . . . . . 1 Exploration Rate (%) 59 | 4 95 95 45 97 88 4 97 15 85 73 84 20 36 36 36 96 46 95 38 Regions Visited 19 Branch Regions 12 Pre-discovered Areas 10 | . 3 . 2 3 2 . . . . . . . . . . . . . . Known Exits Taken 9 | . . 1 . 1 . . . 1 . . . 1 . 1 1 1 1 1 . Unknown Exits Taken 8 | 1 1 . 1 . 1 . . . 1 1 1 . 1 . . . . . . Scrap Searched 11 | . . 1 2 . 8 . . . . . . . . . . . . . . Spaces Dug 82 | . . . 2 . . 8 . 3 . . . 2 7 11 7 . 8 24 10 Terrain Destroyed 908 | . 74 . 16 . . 14 . 31 27 4 4 268 281 13 9 . 16 31 120 Melee 20 | . . . 2 . . . . 3 . . . . 5 10 . . . . . Projectile 202 | . . . . . . . . 3 12 4 4 2 68 3 9 . 16 31 50 AOE 686 | . 74 . 14 . . 14 . 25 15 . . 266 208 . . . . . 70 Terrain Rammed . | . . . . . . . . . . . . . . . . . . . . Walls Destroyed . | . . . . . . . . . . . . . . . . . . . . Machines Disabled . | . . . . . . . . . . . . . . . . . . . . Actions | -11 -10 -10 -10 -9 -9 -6 -6 -6 -6 -6 -6 -6 -5 -4 -4 -4 -3 -3 -3 --------- Run | Yrd Mat Min Sub Rec Scr Fac Was Fac Ext Cet Arc Hub Fac Fac Arm Lab Res Qua Frg Total 16507 | 93 820 634 879 493 1841 292 473 351 1047 543 123 97 1308 1069 583 307 1535 1281 2738 Wait 1975 | . 68 4 146 15 1 96 9 5 154 161 5 1 182 87 23 29 92 120 777 Move 12651 | 68 645 615 684 473 1711 151 412 297 743 329 87 83 894 881 508 244 1264 1019 1543 Hop 29 | . . . . . . . . . . . . . 4 14 4 . 7 . . Pick Up 197 | 5 14 1 10 . 49 5 15 4 4 7 4 1 15 6 4 3 15 12 23 Fast Attach 158 | 7 . . . . 4 . 6 1 3 5 . 1 25 14 9 11 21 8 43 Attach 77 | . 2 2 . . 4 12 1 1 1 1 1 . 29 5 1 1 2 2 12 Detach 46 | . . . . . 4 . 3 . . 1 . . 9 2 1 5 8 1 12 Swap 186 | . 9 . 8 . . 9 4 6 4 13 1 . 19 5 5 1 17 21 64 Drop 216 | . 3 1 6 . 53 . 17 6 4 17 4 1 13 10 7 8 26 16 24 Fire 705 | 13 79 11 6 . 3 17 . 28 36 9 21 8 103 23 17 5 53 82 191 Melee 107 | . . . 17 5 12 2 5 3 . . . . 14 22 . . . . 27 Ram . | . . . . . . . . . . . . . . . . . . . . Kick . | . . . . . . . . . . . . . . . . . . . . Crush 4 | . . . . . . . . . . . . 2 1 . . . 1 . . Escape Stasis 21 | . . . . . . . . . 2 . . . . . . . 16 . 3 Rewire 104 | . . . 2 . . . 1 . 96 . . . . . 4 . 1 . . Trap . | . . . . . . . . . . . . . . . . . . . . Miscellaneous 31 | . . . . . . . . . . . . . . . . . 12 . 19 Route ------- -11/Scrapyard -10/Materials (discovered 5 exits: *Mat x3 / [*Min] / Sub) -10/Mines (discovered 2 exits: *Mat / *Sub) -10/Subcaves -9/Recycling (discovered 2 exits: *Fac / *Scr) -9/Scraptown (discovered 2 exits: *Fac x2) -6/Factory -6/Waste -6/Factory (discovered 5 exits: *Fac / Low x2 / *Ext x2) -6/Extension (discovered 2 exits: *Fac / *Cet) -6/Cetus (discovered 2 exits: *Fac / [*Arc]) -6/Archives (discovered 3 exits: *Fac / *Hub x2) -6/Hub_04(d) (discovered 2 exits: *Fac x2) -5/Factory -4/Factory (discovered 4 exits: *Res / *Upp x2 / *Arm) -4/Armory -4/Lab -3/Research (discovered 3 exits: *Res / *Qua x2) -3/Quarantine (discovered 3 exits: *Res / [*Sec] / *Frg) -3/Protoforge (discovered 1 exit: *Res) History --------- Turn | Location | Event 34 | -11/Scrapyard | Discovered new exit (range 15) 155 | -11/Scrapyard | Entered Materials 200 | -10/Materials | Central database locked down 308 | -10/Materials | Build established: Mutant 521 | -10/Materials | Discovered new exit (range 16) 690 | -10/Materials | Identified exit to Materials 690 | -10/Materials | Identified exit to Subcaves 725 | -10/Materials | Learned Storage security intel 769 | -10/Materials | Learned Storage stockpile data 770 | -10/Materials | Learned location of Subcaves (-10) 771 | -10/Materials | Learned 4 Recycling zone layouts 776 | -10/Materials | Loaded intel: 8 trap records 793 | -10/Materials | Learned Storage garrison access intel 849 | -10/Materials | Discovered exit to Materials (range 16) 951 | -10/Materials | Core integrity fell below 50% 1210 | -10/Materials | Discovered new exit (range 16) 1385 | -10/Materials | Entered Mines 1427 | -10/Mines | Met a Derelict bent on vengeance 1503 | -10/Mines | A weapon hastily lodged in a ceiling crevice suddenly fell to the ground 1574 | -10/Mines | Discovered exit to Materials (range 6) 1999 | -10/Mines | Assisted by bots powering up and referring to "LRC-V3" 2304 | -10/Mines | Discovered exit to Subcaves (range 6) 2316 | -10/Mines | Entered Subcaves 2316 | -10/Subcaves | Accompanied by 3 allies 2646 | -10/Subcaves | Learned location of Zion (-6) 2646 | -10/Subcaves | Met a Zionite searching for "candidates" 2665 | -10/Subcaves | Learned location of 1 exit from Materials 2743 | -10/Subcaves | Core integrity fell below 20% 2812 | -10/Subcaves | Discovered new exit (range 14) 2984 | -10/Subcaves | Learned location of Storage (-9) 3060 | -10/Subcaves | Shifting Twisted Machinery released Flamer 3140 | -10/Subcaves | Visited 4L-MR0's lab 3159 | -10/Subcaves | Found Powered Cannon 3533 | -10/Subcaves | Entered Recycling 3533 | -9/Recycling | Accompanied by 1 ally 3534 | -9/Recycling | Identified exit to Scraptown 3534 | -9/Recycling | Identified exit to Factory 3934 | -9/Recycling | Learned Materials trap positions 4044 | -9/Recycling | Learned location of 1 exit from Storage 4115 | -9/Recycling | Learned 2 Materials zone layouts 4142 | -9/Recycling | Scanned before Scraplab entrance 4155 | -9/Recycling | Learned location of 3 exits from Materials 4162 | -9/Recycling | Entered Scraplab 4176 | -9/Recycling | Entered Scraptown 4286 | -9/Scraptown | Scanned Subdweller tech in exchange for log data 4288 | -9/Scraptown | Learned location of Warlord (-5) 4290 | -9/Scraptown | Learned 12 Factory zone layouts 4291 | -9/Scraptown | Learned Factory non-interactive machine intel 4292 | -9/Scraptown | Learned location of Extension (-6) 4293 | -9/Scraptown | Learned Factory security intel 4343 | -9/Scraptown | Visited TADAMA 4361 | -9/Scraptown | Visited Science Testing Area 4433 | -9/Scraptown | Visited Bundlers 4625 | -9/Scraptown | Visited UFD Registry 4625 | -9/Scraptown | Registered with UFD as "Technotalker" 4814 | -9/Scraptown | Visited Fellowship of the Rings 4846 | -9/Scraptown | Visited CPS Storage 4853 | -9/Scraptown | Heard Great Nut preacher, LISTEN AND RECITE! 5101 | -9/Scraptown | Discovered new exit (range 13) 5590 | -9/Scraptown | Visited Chapter 10 5614 | -9/Scraptown | Visited Analyses Database 5652 | -9/Scraptown | Visited Derelict Rescue Squad 5660 | -9/Scraptown | Found DRS Beacon 5688 | -9/Scraptown | Visited Supply Room 5710 | -9/Scraptown | Visited Supply Room 5734 | -9/Scraptown | Visited Scrap Suit Storage 5742 | -9/Scraptown | Found Scrap Suit 5896 | -9/Scraptown | Visited Science Guys 5964 | -9/Scraptown | Visited Infowarlord's Domain 6648 | -9/Scraptown | Met Optimus 6648 | -9/Scraptown | Accepted into 0bPrime 6732 | -9/Scraptown | Discovered new exit (range 3) 6735 | -9/Scraptown | Entered Factory 6735 | -6/Factory | Evolved 8 slots: Power x1, Propulsion x2, Utility x4, Weapon x1 6736 | -6/Factory | Identified exit to Lower Caves 6738 | -6/Factory | Loaded intel: 258 non-interactive machine locations 6927 | -6/Factory | Destroyed 8 combat bots 6929 | -6/Factory | Lost 4 parts (2p1n1u) 7095 | -6/Factory | Build established: Tank 7173 | -6/Factory | Spotted B-75 Beast 7176 | -6/Factory | Sucked down chute 7176 | -6/Factory | Entered Waste 7176 | -6/Waste | The area was eerily silent 7451 | -6/Waste | Build established: Scavenger-Mutant 7808 | -6/Waste | Discovered new exit (range 12) 7900 | -6/Waste | Entered Factory 8061 | -6/Factory | Garrison activated, responded to threat 8103 | -6/Factory | Destroyed 7 combat bots 8183 | -6/Factory | Discovered new exit (range 15) 8210 | -6/Factory | Identified exit to Factory 8338 | -6/Factory | Build established: Scavenger-Tank 8385 | -6/Factory | Identified exit to Extension 8493 | -6/Factory | Entered Extension 8745 | -6/Extension | Rescued A7 8914 | -6/Extension | Rescued a captive Derelict 8925 | -6/Extension | Rescued a captive Derelict 8956 | -6/Extension | Rescued a captive Derelict 9551 | -6/Extension | Spotted B-75 Beast 9569 | -6/Extension | Destroyed B-75 Beast 9572 | -6/Extension | Spotted B-75 Beast 9583 | -6/Extension | Destroyed B-75 Beast 9662 | -6/Extension | Rescued a captive Derelict 9663 | -6/Extension | Rescued a captive Derelict 9691 | -6/Extension | Rescued a captive Derelict 9727 | -6/Extension | Rescued a captive Derelict 9729 | -6/Extension | Rescued a captive Derelict 9756 | -6/Extension | Rescued a captive Derelict 9757 | -6/Extension | Rescued a captive Derelict 9893 | -6/Extension | First assault squad dispatched 9895 | -6/Extension | Lost 6 allies 10020 | -6/Extension | Discovered exit to Factory (range 10) 10022 | -6/Extension | Discovered new exit (range 6) 10062 | -6/Extension | Entered Cetus 10062 | -6/Cetus | Accompanied by 6 allies (A7) 10067 | -6/Cetus | Acquired a Cetus Manufacturing Module code from A7 10078 | -6/Cetus | Spotted Cetus Guard 10080 | -6/Cetus | Spotted Cetus Guard 10082 | -6/Cetus | Spotted Cetus Guard 10090 | -6/Cetus | Destroyed Cetus Guard 10091 | -6/Cetus | Spotted Cetus Guard 10096 | -6/Cetus | Allies destroyed Cetus Guard 10105 | -6/Cetus | Allies destroyed Cetus Guard 10106 | -6/Cetus | Allies destroyed Cetus Guard 10123 | -6/Cetus | Lost 3 allies 10184 | -6/Cetus | Started Cetus Manufacturing Module 10205 | -6/Cetus | Escorted A7 to Cetus Mainframe 10209 | -6/Cetus | Manufactured an Enhanced Grunt 10225 | -6/Cetus | Discovered new exit (range 21) 10234 | -6/Cetus | Manufactured an Enhanced Grunt 10259 | -6/Cetus | Manufactured an Enhanced Grunt 10284 | -6/Cetus | Manufactured an Enhanced Grunt 10309 | -6/Cetus | Manufactured an Enhanced Grunt 10570 | -6/Cetus | Spotted Cetus Guard 10571 | -6/Cetus | Allies destroyed Cetus Guard 10586 | -6/Cetus | Discovered exit to Factory (range 22) 10607 | -6/Cetus | Met Revision 17 10812 | -6/Cetus | Security sweep announced 10816 | -6/Cetus | Entered Archives 10816 | -6/Archives | Accompanied by 8 allies (A7) 10821 | -6/Archives | Received a hacking code to weaken MAIN.C 10821 | -6/Archives | Murdered A7 10825 | -6/Archives | Extracted ID and sensor layout for unrecognized location from A7's data core 10870 | -6/Archives | Discovered new exit (range 22) 10886 | -6/Archives | Discovered new exit (range 22) 10975 | -6/Archives | Discovered exit to Factory (range 22) 11027 | -6/Archives | Entered Hub_04(d) 11027 | -6/Hub_04(d) | Accompanied by 6 allies 11027 | -6/Hub_04(d) | Discovered exit to Factory (range 10) 11099 | -6/Hub_04(d) | Discovered exit to Factory (range 13) 11182 | -6/Hub_04(d) | Network Hub disabled 11182 | -6/Hub_04(d) | Network Hub disabled 11187 | -6/Hub_04(d) | Entered Factory 11187 | -5/Factory | Evolved 2 slots: Utility x1, Weapon x1 11204 | -5/Factory | Destroyed 8 combat bots 11210 | -5/Factory | Lost 6 allies 11416 | -5/Factory | Repaired Broken Micro-nuke Launcher 11487 | -5/Factory | Repaired Broken Centrium Heavy Treads 11487 | -5/Factory | First assault squad dispatched 12093 | -5/Factory | Destroyed 10 combat bots 12167 | -5/Factory | Cargo convoy interrupted 12171 | -5/Factory | Garrison activated, responded to threat 12221 | -5/Factory | Destroyed 11 combat bots 12228 | -5/Factory | Lost 4 parts (1n2u1w) 12263 | -5/Factory | High security lockdown imminent 12323 | -5/Factory | Destroyed 7 combat bots 12343 | -5/Factory | High security lockdown engaged 12370 | -5/Factory | Core integrity fell below 50% 12372 | -5/Factory | Attached Powered Cannon, gained temporary slot: Power 12407 | -5/Factory | Destroyed 7 combat bots 12410 | -5/Factory | Lost 11 parts (1p2n3u5w) 12462 | -5/Factory | System corruption reached 10% 12517 | -5/Factory | Spotted B-75 Beast 12526 | -5/Factory | Lost 10 parts (2p2n4u2w) 12726 | -5/Factory | Discovered new exit (range 5) 12727 | -5/Factory | Entered another Factory area 12727 | -4/Factory | Evolved 2 slots: Propulsion x1, Utility x1 12906 | -4/Factory | Discovered new exit (range 5) 12915 | -4/Factory | Identified exit to Upper Caves 12939 | -4/Factory | Identified exit to Armory 12977 | -4/Factory | First assault squad dispatched 13012 | -4/Factory | Lost 3 parts (1p1n1w) 13160 | -4/Factory | Discovered new exit (range 19) 13224 | -4/Factory | Lost 3 parts (1n2u) 13254 | -4/Factory | Entered Armory 13391 | -4/Armory | Found Prototype Launcher 13454 | -4/Armory | Assisted by bots powering up and referring to "LRC-V3" 13502 | -4/Armory | Discovered new exit (range 4) 13520 | -4/Armory | Identified exit to Lab 13520 | -4/Armory | Entered Lab 13520 | -4/Lab | Discovered new exit (range 9) 13522 | -4/Lab | Identified exit to Research 13524 | -4/Lab | Hidden lab's door opened automatically 13524 | -4/Lab | Sensor layout match revealed 13525 | -4/Lab | Gained access to the hidden lab's interior 13590 | -4/Lab | Found Prototype Energy Cannon 13590 | -4/Lab | Identified Warp Cannon 13593 | -4/Lab | Found Prototype Energy Gun 13593 | -4/Lab | Identified Tachyon Dispersion Ray 13596 | -4/Lab | Found Prototype Protection 13596 | -4/Lab | Identified Med. Regenerative Plating 13598 | -4/Lab | Found Prototype Hackware 13598 | -4/Lab | Identified Quantum Router 13614 | -4/Lab | Found Alien Artifact 13619 | -4/Lab | Found Alien Artifact 13619 | -4/Lab | Identified Integrated Mediator 13619 | -4/Lab | Installed Integrated Mediator, increased core attachment efficiency 13622 | -4/Lab | Found Alien Artifact 13622 | -4/Lab | Identified Core Expander 13622 | -4/Lab | Installed Core Expander, added new Utility slot 13663 | -4/Lab | Entered Research 13663 | -3/Research | Evolved 2 slots: Propulsion x2 13777 | -3/Research | Identified exit to Quarantine 13863 | -3/Research | Revision forces began assault on 0b10 13864 | -3/Research | Local machine network offline 13940 | -3/Research | Build established: Hacker-Scout 13987 | -3/Research | Spotted B-86 Titan 14046 | -3/Research | Discovered new exit (range 5) 14047 | -3/Research | Identified exit to Research 14252 | -3/Research | Met up with Revision 17++ 14287 | -3/Research | Found Prototype Device 14287 | -3/Research | Identified Exp. Focal Shield 14363 | -3/Research | Research terminal network offline 14488 | -3/Research | Build established: Scavenger-Tank 14683 | -3/Research | Spotted Executioner 14686 | -3/Research | Spotted Striker 14691 | -3/Research | Destroyed Striker 14700 | -3/Research | Destroyed Executioner 14762 | -3/Research | Spotted Striker 14780 | -3/Research | Entered Quarantine 14834 | -3/Quarantine | Found Quantum Capacitor 14872 | -3/Quarantine | Repaired Adv. Power Amplifier 14926 | -3/Quarantine | Found Alien Reactor 14960 | -3/Quarantine | Found Alien Artifact 14960 | -3/Quarantine | Identified Subatomic Replicator 15083 | -3/Quarantine | Build established: Scavenger-Skirmisher 15628 | -3/Quarantine | Found Prototype Processor 15628 | -3/Quarantine | Identified Exp. Targeting Computer 15696 | -3/Quarantine | Found Fusion Bomb Launcher 15828 | -3/Quarantine | Found Exp. Signal Interpreter 15891 | -3/Quarantine | Found Alien Artifact 15900 | -3/Quarantine | Found Alien Artifact 15900 | -3/Quarantine | Identified Dimensional Node Initializer 15900 | -3/Quarantine | Initialized slip node 15905 | -3/Quarantine | Found Dimensional Node Initializer 15994 | -3/Quarantine | Warp Cannon suddenly broke down 16038 | -3/Quarantine | Found Alien Artifact 16620 | -3/Quarantine | Spotted Fortress 16663 | -3/Quarantine | Identified Matter Drive 16732 | -3/Quarantine | System corruption reached 10% 16737 | -3/Quarantine | Discovered new exit (range 7) 16739 | -3/Quarantine | Discovered new exit (range 4) 16743 | -3/Quarantine | Identified exit to Protoforge 16745 | -3/Quarantine | Entered Protoforge 17059 | -3/Protoforge | Discovered exit to Research (range 4) 17491 | -3/Protoforge | Initialized slip node 17563 | -3/Protoforge | Additional patrols dispatched to research labs 17563 | -3/Protoforge | Superfortress began startup sequence 17616 | -3/Protoforge | Found Prototype Hover Unit 17616 | -3/Protoforge | Identified Cep. Combat Aerolev Unit 17682 | -3/Protoforge | Spotted Immortal 17682 | -3/Protoforge | Spotted Immortal 17751 | -3/Protoforge | Destroyed Immortal 17762 | -3/Protoforge | Spotted Decapitator 17762 | -3/Protoforge | Spotted Decapitator 17762 | -3/Protoforge | Spotted Decapitator 17804 | -3/Protoforge | Destroyed Immortal 17817 | -3/Protoforge | Found Prototype Device 17823 | -3/Protoforge | Identified Exp. Cloaking Device 17846 | -3/Protoforge | Identified Transdimensional Reconstructor 17851 | -3/Protoforge | Found Prototype Device 17851 | -3/Protoforge | Identified Crosscalibrator 17929 | -3/Protoforge | System corruption reached 30% 17947 | -3/Protoforge | Spotted V171-f 17947 | -3/Protoforge | Spotted V335-j 17947 | -3/Protoforge | Spotted V574-s 17949 | -3/Protoforge | Spotted V018-o 17973 | -3/Protoforge | Found Cep. Network Penetrator 18033 | -3/Protoforge | Found Cep. Tiamat Rocket Array 18047 | -3/Protoforge | Spotted Decapitator 18047 | -3/Protoforge | Spotted Decapitator 18047 | -3/Protoforge | Spotted Decapitator 18099 | -3/Protoforge | Found Prototype Launcher 18099 | -3/Protoforge | Identified Cep. Arcsight Missile Launcher 18729 | -3/Protoforge | Destroyed Decapitator 18729 | -3/Protoforge | Destroyed Decapitator 18729 | -3/Protoforge | Destroyed Decapitator 18845 | -3/Protoforge | Found Exp. Terror Saw 18850 | -3/Protoforge | Found Cep. Plasma Driver 18854 | -3/Protoforge | Found Prototype Energy Gun 18854 | -3/Protoforge | Identified Cep. Lightning Penetrator 18890 | -3/Protoforge | Found Adv. Powered Armor 18892 | -3/Protoforge | Found Cep. Combat Aerolev Unit 18910 | -3/Protoforge | Spotted V620-b 18951 | -3/Protoforge | Found Cep. Variable Chargecaster 18963 | -3/Protoforge | Found Faulty Cep. Variable Chargecaster 18975 | -3/Protoforge | Found Cep. Deflector Sword 19209 | -3/Protoforge | Found Faulty Cep. Variable Chargecaster 19299 | -3/Protoforge | Spotted Hotshot 19314 | -3/Protoforge | Spotted Hotshot 19318 | -3/Protoforge | Destroyed Hotshot 19327 | -3/Protoforge | Destroyed Hotshot 19624 | -3/Protoforge | Spotted V359-b 19624 | -3/Protoforge | Spotted V027-i 19742 | -3/Protoforge | Destroyed V359-b 19754 | -3/Protoforge | Found Prototype Protection 19754 | -3/Protoforge | Identified Cep. RG22 Armor 19758 | -3/Protoforge | Found Prototype Processor 19758 | -3/Protoforge | Identified Cep. Melee Reflex Suite 19762 | -3/Protoforge | Found Corrupted Prototype Device 19762 | -3/Protoforge | Identified Cep. Energy Mantle 19765 | -3/Protoforge | Found Corrupted Cep. RG22 Armor 19770 | -3/Protoforge | Lost 5 parts (2n2u1w) 19775 | -3/Protoforge | Found Prototype Processor 19775 | -3/Protoforge | Identified Exp. Core Analyzer 19779 | -3/Protoforge | Found Exp. Focal Shield 19781 | -3/Protoforge | Found Prototype Processor 19781 | -3/Protoforge | Identified Exp. Armor Integrity Analyzer 19878 | -3/Protoforge | Spotted Decapitator 19878 | -3/Protoforge | Spotted Decapitator 19878 | -3/Protoforge | Spotted Decapitator 19878 | -3/Protoforge | Spotted Decapitator 19935 | -3/Protoforge | Spotted V382-z 19935 | -3/Protoforge | Spotted V701-u 19943 | -3/Protoforge | Spotted Immortal 19945 | -3/Protoforge | Spotted Immortal 20050 | -3/Protoforge | Build established: Hacker-Tank 20326 | -3/Protoforge | Lost 3 parts (2n1u) 20365 | -3/Protoforge | Found Cep. Antigrav Storage Unit 20371 | -3/Protoforge | Found Cep. NT7 Matterbank 20405 | -3/Protoforge | Found Prototype Device 20405 | -3/Protoforge | Identified Cep. Matter Streamer 20438 | -3/Protoforge | Found Cep. Chromion Battery 20582 | -3/Protoforge | Build established: Hacker-Gunner 20598 | -3/Protoforge | Spotted AP7-3 20598 | -3/Protoforge | Spotted AP7-3 20745 | -3/Protoforge | First assault squad dispatched 20849 | -3/Protoforge | Found Cep. Nanofilaments [Polyglass] 20849 | -3/Protoforge | Installed Cep. Nanofilaments [Polyglass], 3 resistances modified: KI -10%, TH +20%, EX -50% 20870 | -3/Protoforge | Found Prototype Device 20893 | -3/Protoforge | Found Transdimensional Reconstructor 21101 | -3/Protoforge | Core integrity fell below 50% 21110 | -3/Protoforge | Identified Hpw. Transdimensional Reconstructor 21110 | -3/Protoforge | Warped through subspace to slip node 21110 | -3/Protoforge | Spotted Hotshot 21110 | -3/Protoforge | Spotted Hotshot 21110 | -3/Protoforge | Spotted Hotshot 21110 | -3/Protoforge | Spotted Hotshot 21110 | -3/Protoforge | Spotted Hotshot 21110 | -3/Protoforge | Core destroyed Last Messages --------------- 21079_ Arcsight Missile intercepted. 21095_ System corrupted: Heat flow error (+128). 21104_ Penetrated by Slug. 21104_ Particle Reactor destroyed. 21106_ Penetrated by Slug. 21106_ Slug penetrates Closed Research Cell. 21106_ Deflected attack with Cep. Deflector Sword. 21107_ Penetrated by Slug. 21107_ Cep. Variable Chargecaster destroyed. 21107_ Slug penetrates Closed Research Cell. 21107_ Enh. Armored Medium Treads destroyed. 21107_ Cep. Variable Chargecaster destroyed. 21109_ Penetrated by Slug. 21110_ System corrupted: Cep. Deflector Sword rejected. 21110_ Identified Hpw. Transdimensional Reconstructor. 21110_ Warped through subspace, drawn to slip node. 21110_ Dimensional Slip Node implodes. 21110_ Mic. Antimatter Reactor destroyed. 21110_ Cep. Variable Chargecaster destroyed. 21110_ Gravmag System destroyed. Map ----- +----------------------------------------------------+ | ??????????????????????## """" """" # | | ??????????????????????## """" """" # | | ??????????????????????## """" """" # | | ??????????????????????## # | | ??????????????????????## """" """" # | | ??????????????????????## """" """" # | | ??????????????????????## """" """" # | | ??????????????????????## """ """" # | | ???????????############# " | | ???????????#############"###+#+"##""# | | ???????????## # +% | | ???????????## + " | | ???????????## # % | | ???????????## # + "" | | ??????????? + # # """ | | ?######## ### # # """ | | ?########+#######+#####+#### #"### | | ?## ## ### ##### | | ?## + | | ?## # g | | ?## # g """ ####+ | | ?## # """ ### | | ?#############"# """ ### | | ?############### ^ ^ """" ### | | ?????????## ^ g"""" ### | | ?????????## @ """" ### | | ?????????## < g ### | | ?????????## g """ ### | | ?????????############ """ #### | | ?????????###### # """ #### | | ?????????????## # """" ###### | | ?????????????## # """" | | ????????????### # """" ?????? | | ??############# # ?????? | | ?? #" # ?????? | | ???? ## ######## ?????? | | # """""" ## ######## #???? | | # """""" ####+########## #???? | | # """""" # +???? | | # """ + #???? | | # # #???? | | # """""" # #???? | | # """""" ## #######+##### ##???? | | ??? """""" ## #??????????????????? | | ????""" ## #??????????????????? | | ???? ## ####???????????????? | | ???############ +???????????????? | | ??????????????## ####?????????????? # | | ???###########?# #????????????????? # | | #### #?# ###??????????????? | +----------------------------------------------------+ Best States ------------- Heat Dissipation 121 Coolant Potential 120 Energy Generation 49 Energy Capacity 600 Matter Stores 300 Matter Capacity 300 Sight Range 23 Robot Scan Range 18 Terrain Scan Density 10 Jamming Range 14 Cloak Strength 4 Power Amplification 30 EM Shielding 4 Armor Coverage 1200 Resistance: KI 30 Resistance: TH 20 Resistance: EM 20 Propulsion Shielding 90 Projectile Deflection 15 Weapon Cycling 20 Evasion (%) 64 Targeting Accuracy 12 Melee Accuracy 16 Core Analysis 8 Recoil Reduction 7 Particle Charging 25 Offensive Hacking 62 Defensive Hacking 25 Item Schematics ----------------- Plasma Cutter | -9/Recycling | Hacked Imp. Transmission Jammer | -5/Factory | Scanalyzed Robot Schematics ------------------ None Fabricated ------------ Nothing Repaired ---------- Micro-nuke Launcher | 7% | -5/Factory | Broken Centrium Heavy Treads | 71% | -5/Factory | Broken Adv. Power Amplifier | 6% | -3/Quarantine Alien Tech Used ----------------- Integrated Mediator Core Expander Subatomic Replicator Dimensional Node Initializer Matter Drive Concept Nanofilaments [Polyglass] High-powered Transdimensional Reconstructor Achievements -------------- None Challenges ------------ None Game ------ Seed SkeletonDrainedTrap Manual? 0 Play Time 04:38:45 Cumulative 254.0 hours Start 2025.08.11 @ 17:18:03 End 2025.08.12 @ 01:58:29 Sessions 23 Manual Loads 0 Difficulty Rogue Special Mode None Game No. 266 Rogue 266 Adventurer 0 Explorer 0 Win Type - Total 11 Types 5/0/3/1/0/0/0/1/0/1 Lore% 75 Gallery% 73 Achievement% 66 Wizard Run 0 Options --------- Layout 1 ASCII 0 Keyboard 1 Movement Numpad Keybinds 0 Fullscreen 1 Font 32/SmallcapsGlow Map View 77x35 Zoom Use 0% Tactical HUD 1 Map Filters NONE Filters NONE Steam 1 RUN: 0db49d43-2fff-4877-817b-1b5bb456081d